bitfinex-derivatives/quotes_SOLF0:USTF0_20250520
["timestamp","ask_amount","ask_price","bid_price","bid_amount"]
[1747725953537,5.948,168.07,168.06,0.04405527]
[1747725955239,5.948,168.07,168.06,5.527e-05]
[1747725955444,5.9504,168.01,167.99,64.8]
[1747725956747,5.99247983,168.02,167.99,64.8]
[1747725957247,0.04267983,168.02,167.99,70.7505]
[1747725957445,0.04267983,168.02,167.99,64.8]
[1747725958347,5.99247983,168.02,167.99,64.8]
[1747725958542,0.04267983,168.02,167.99,64.8]
[1747725958845,5.9502,168.01,167.98,0.04052484]
[1747725959445,5.9507,168.0,167.98,0.04052484]
[1747725959947,0.04267983,168.02,167.98,0.04052484]
[1747725960245,64.8,168.07,167.98,0.04052484]
[1747725960446,64.8,168.1,167.98,0.04052484]
[1747725960746,71.18128348,168.11,167.96,64.8]
[1747725961040,5.9483,168.06,168.03,5.9494]
[1747725961446,5.9483,168.06,168.03,5.99320032]
[1747725961643,5.9487,168.05,168.03,0.04380032]
[1747725961946,6.38128348,168.08,168.03,0.04380032]
[1747725962342,5.949,168.04,168.03,0.04380032]
[1747725962644,71.18128348,168.11,168.03,0.04380032]
[1747725962846,5.9482,168.07,168.03,5.99290032]
[1747725963041,72.19168348,168.14,168.03,64.84380032]
[1747725963234,72.19168348,168.14,168.07,0.04153933]
[1747725963646,5.9475,168.09,168.07,0.04153933]
[1747725964345,64.8,168.14,168.07,0.04153933]
[1747725965046,64.8,168.14,168.07,5.98923933]
[1747725965857,5.947,168.1,168.07,0.04153933]
[1747725967755,64.8,168.14,168.07,0.04153933]
[1747725967952,6.38128348,168.13,168.07,0.04153933]
[1747725968349,5.9476,168.08,168.07,3.933e-05]
[1747725972665,5.95,168.02,168.0,68.8579]
[1747725973261,5.9495,168.03,168.0,68.8579]
[1747725973558,0.0453281,168.03,168.0,68.90177808]
[1747725973756,5.948,168.07,168.0,68.90177808]
[1747725973957,64.8,168.1,168.01,2.0796]
[1747725974562,64.6,168.13,168.05,5.9487]
[1747725974755,64.6,168.13,168.07,0.04461955]
[1747725975259,5.947,168.1,168.07,0.04461955]
[1747725976067,64.6,168.13,168.07,0.04461955]
[1747725976966,5.9476,168.08,168.07,0.04461955]
[1747725979262,5.9494,168.03,168.0,4.0579]
[1747725979464,5.9494,168.03,168.0,2.0273]
[1747725979856,64.6,168.08,168.0,2.0273]
[1747725980261,64.6,168.08,168.02,0.03941316]
[1747725980467,5.9492,168.04,168.02,0.03941316]
[1747725982067,5.949,168.05,168.02,5.98911316]
[1747725982464,5.949,168.05,168.02,0.03941316]
[1747725982665,5.9491,168.04,168.02,0.03941316]
[1747725982865,0.03905935,168.06,168.02,0.03941316]
[1747725985268,5.9494,168.03,168.02,0.03941316]
[1747725990674,5.9494,168.03,168.02,1.316e-05]
[1747725990968,5.9492,168.04,168.02,1.316e-05]
[1747725991169,0.03905935,168.06,168.02,1.316e-05]
[1747725992273,5.98745935,168.06,168.03,5.9494]
[1747725994069,5.98745935,168.06,168.02,1.316e-05]
[1747725994070,0.03905935,168.06,168.02,1.316e-05]
[1747725994774,5.9494,168.03,168.02,1.316e-05]
[1747725995370,0.03905935,168.06,168.02,1.316e-05]
[1747725995973,5.98755935,168.06,168.02,1.316e-05]
[1747725996273,0.03905935,168.06,168.02,1.316e-05]
[1747725996475,5.9494,168.03,168.02,1.316e-05]
[1747726000678,5.9492,168.04,168.02,1.316e-05]
[1747726002077,5.9494,168.03,168.02,1.316e-05]
[1747726017997,5.9492,168.04,168.02,1.316e-05]
[1747726018300,0.03905935,168.06,168.02,5.94951316]
[1747726018691,5.98745935,168.06,168.02,5.94951316]
[1747726018891,0.03905935,168.06,168.03,5.9493]
[1747726020397,5.9482,168.07,168.04,5.9489]
[1747726020704,64.44,168.09,168.02,1.316e-05]
[1747726020895,64.44,168.12,168.02,1.316e-05]
[1747726021502,5.9494,168.03,168.02,1.316e-05]
[1747726022104,5.98788543,168.04,168.02,1.316e-05]
[1747726023098,0.03878543,168.04,168.02,1.316e-05]
[1747726023603,5.9479,168.08,168.04,5.9487]
[1747726023805,64.44,168.11,168.01,5.9847]
[1747726024203,5.9473,168.09,168.05,5.9484]
[1747726024405,5.9473,168.09,168.05,5.99062356]
[1747726025299,5.9473,168.09,168.06,5.9483]
[1747726025806,5.947,168.1,168.05,0.04222356]
[1747726026006,5.947,168.1,168.06,0.03909781]
[1747726026604,5.947,168.1,168.07,5.9479]
[1747726026805,5.947,168.1,168.07,7.8759]
[1747726027105,5.9467,168.11,168.07,7.8759]
[1747726027305,64.44,168.14,168.07,7.8759]
[1747726027504,5.947,168.1,168.07,7.8759]
[1747726029202,64.44,168.14,168.09,5.9472]
[1747726029407,514.36,168.16,168.07,1.928]
[1747726029408,514.36,168.16,168.1,0.04438263]
[1747726029608,64.42,168.17,168.1,5.99098263]
[1747726029809,64.42,168.17,168.1,0.04438263]
[1747726030103,5.9461,168.13,168.1,0.04438263]
[1747726030508,64.42,168.17,168.1,0.04438263]
[1747726031611,5.9465,168.11,168.1,0.04438263]
[1747726035913,5.9463,168.12,168.1,0.04438263]
[1747726036117,64.42,168.17,168.1,5.99118263]
[1747726036416,5.946,168.13,168.1,5.99118263]
[1747726036619,64.42,168.17,168.1,0.04438263]
[1747726036817,5.9457,168.14,168.11,5.9463]
[1747726038821,5.9457,168.14,168.1,0.04438263]
[1747726038822,64.24,168.2,168.1,0.04438263]
[1747726039317,64.24,168.2,168.12,5.9461]
[1747726039517,64.24,168.2,168.14,0.04529636]
[1747726039707,5.9452,168.15,168.14,0.04529636]
[1747726041721,5.9452,168.15,168.14,9.636e-05]
[1747726042615,11.8852,168.15,168.14,9.636e-05]
[1747726042816,13.8582,168.15,168.14,9.636e-05]
[1747726044319,7.9182,168.15,168.14,9.636e-05]
[1747726044619,13.8582,168.15,168.14,9.636e-05]
[1747726045320,584.3982,168.15,168.14,9.636e-05]
[1747726051225,584.4182,168.15,168.14,9.636e-05]
[1747726051615,578.4782,168.15,168.14,9.636e-05]
[1747726051815,521.9382,168.15,168.14,9.636e-05]
[1747726052722,521.0963,168.15,168.14,9.636e-05]
[1747726052927,519.9652,168.15,168.14,9.636e-05]
[1747726053331,584.2252,168.15,168.14,9.636e-05]
[1747726072450,70.2052,168.15,168.14,9.636e-05]
[1747726086567,54.5227,168.15,168.14,9.636e-05]
[1747726086767,0.04471119,168.16,168.14,9.636e-05]
[1747726087072,5.9452,168.15,168.14,9.636e-05]
[1747726087273,0.04471119,168.16,168.14,9.636e-05]
[1747726087569,64.06,168.18,168.14,9.636e-05]
[1747726087758,70.0041,168.18,168.14,9.636e-05]
[1747726087956,5.9441,168.18,168.14,9.636e-05]
[1747726088165,64.06,168.21,168.14,9.636e-05]
[1747726088863,5.9447,168.17,168.14,9.636e-05]
[1747726089065,64.06,168.21,168.14,9.636e-05]
[1747726089970,5.9444,168.17,168.14,9.636e-05]
[1747726090973,5.9444,168.17,168.14,5.94549636]
[1747726091362,5.9444,168.17,168.14,9.636e-05]
[1747726092173,64.06,168.21,168.14,9.636e-05]
[1747726092174,5.9449,168.16,168.14,9.636e-05]
[1747726092574,64.06,168.21,168.14,9.636e-05]
[1747726092775,5.9445,168.17,168.14,9.636e-05]
[1747726093277,5.9448,168.16,168.14,9.636e-05]
[1747726093473,5.9448,168.16,168.14,3.97739636]
[1747726094269,5.9451,168.15,168.14,3.97739636]
[1747726095276,5.9449,168.16,168.14,3.97739636]
[1747726096375,5.9451,168.15,168.14,3.97739636]
[1747726097782,5.9451,168.15,168.14,2.01849636]
[1747726097985,5.9451,168.15,168.14,9.636e-05]
[1747726099479,64.06,168.21,168.14,9.636e-05]
[1747726099686,5.9449,168.16,168.14,9.636e-05]
[1747726099885,64.06,168.21,168.14,9.636e-05]
[1747726100287,5.9451,168.15,168.14,9.636e-05]
[1747726107601,5.9449,168.16,168.14,9.636e-05]
[1747726109298,5.9449,168.16,168.14,5.94559636]
[1747726109491,64.06,168.21,168.14,5.94559636]
[1747726110300,5.9447,168.17,168.14,5.94559636]
[1747726114507,63.84,168.24,168.15,63.84]
[1747726114705,74.68634835,168.27,168.18,0.04071404]
[1747726114904,5.9425,168.23,168.19,69.7834]
[1747726115202,74.68634835,168.27,168.19,63.84]
[1747726115598,5.9434,168.21,168.19,63.84]
[1747726116703,5.9434,168.2,168.19,63.84]
[1747726117505,5.9431,168.21,168.19,63.84]
[1747726117806,74.68634835,168.27,168.19,63.84]
[1747726118003,5.9437,168.19,168.18,0.04071404]
[1747726128601,577.54,168.3,168.18,0.04071404]
[1747726128807,3.8507,168.29,168.18,0.04071404]
[1747726129006,5.9427,168.22,168.18,5.98471404]
[1747726129304,3.8507,168.29,168.18,0.04071404]
[1747726129510,5.9429,168.22,168.18,0.04071404]
[1747726130409,5.943,168.21,168.18,5.98471404]
[1747726130600,5.943,168.21,168.18,0.04071404]
[1747726132210,5.9428,168.22,168.18,5.98471404]
[1747726132413,3.8507,168.29,168.18,0.04071404]
[1747726133009,5.9425,168.23,168.19,5.9437]
[1747726133312,5.9425,168.23,168.19,5.98892552]
[1747726133708,5.9427,168.22,168.19,0.04522552]
[1747726134009,3.8507,168.29,168.19,0.04522552]
[1747726134412,5.9429,168.22,168.19,0.04522552]
[1747726134817,3.8507,168.29,168.19,0.04522552]
[1747726135606,5.9434,168.2,168.19,0.04522552]
[1747726155421,5.9448,168.16,168.15,63.64]
[1747726155617,69.9035177,168.22,168.12,63.54]
[1747726156124,6.3635177,168.16,168.04,63.54]
[1747726156317,0.04488318,168.12,168.08,0.03851948]
[1747726156517,5.9473,168.09,168.08,0.03851948]
[1747726157023,0.04488318,168.12,168.08,0.03851948]
[1747726160324,5.9468,168.11,168.08,0.03851948]
[1747726160516,0.04488318,168.12,168.08,0.03851948]
[1747726162627,5.9472,168.1,168.08,0.03851948]
[1747726162925,0.04488318,168.12,168.08,0.03851948]
[1747726165130,5.9472,168.1,168.08,0.03851948]
[1747726168122,5.9472,168.09,168.08,0.03851948]
[1747726175540,5.947,168.1,168.08,0.03851948]
[1747726175731,0.04488318,168.12,168.08,0.03851948]
[1747726176639,5.9472,168.09,168.08,0.03851948]
[1747726200650,5.9468,168.11,168.08,0.03851948]
[1747726200852,0.04488318,168.12,168.08,0.03851948]
[1747726201247,5.9473,168.09,168.08,0.03851948]
[1747726201447,0.04488318,168.12,168.08,0.03851948]
[1747726201941,5.9473,168.09,168.08,0.03851948]
[1747726202650,0.04488318,168.12,168.08,0.03851948]
[1747726203354,0.04488318,168.12,168.09,5.947]
[1747726203651,0.04488318,168.12,168.08,63.53851948]
[1747726204453,0.04488318,168.12,168.08,69.90203718]
[1747726204652,0.04488318,168.12,168.09,4.0124]
[1747726205551,0.04488318,168.12,168.11,5.9465]
[1747726210855,0.04488318,168.12,168.1,5.9468]
[1747726211059,0.04488318,168.12,168.11,63.48]
[1747726212756,0.04488318,168.12,168.11,69.4265]
[1747726214560,63.5,168.22,168.15,5.945]
[1747726214758,5.9431,168.21,168.15,63.36]
[1747726214950,125.1434698,168.23,168.15,63.36]
[1747726215154,3.8997,168.25,168.15,63.36]
[1747726215556,5.9423,168.23,168.18,0.03749716]
[1747726215761,3.8997,168.25,168.18,0.03749716]
[1747726216569,5.9429,168.22,168.18,0.03749716]
[1747726218766,5.9422,168.24,168.18,0.03749716]
[1747726218968,12.73134835,168.27,168.19,63.36]
[1747726219165,10.84634835,168.27,168.19,63.36]
[1747726219365,5.9419,168.25,168.19,65.3081]
[1747726220667,5.9419,168.24,168.19,65.3081]
[1747726220968,10.84634835,168.27,168.19,65.3081]
[1747726221171,5.9433,168.21,168.19,63.36]
[1747726221771,5.9433,168.2,168.19,63.36]
[1747726223173,5.9437,168.19,168.18,0.03749716]
[1747726225877,5.9434,168.2,168.18,0.03749716]
[1747726226575,75.6143177,168.26,168.18,0.03749716]
[1747726227281,5.9434,168.2,168.18,0.03749716]
[1747726227581,75.6143177,168.26,168.18,0.03749716]
[1747726227782,5.9425,168.23,168.18,0.03749716]
[1747726227976,5.9108,168.26,168.18,0.03749716]
[1747726228176,5.9423,168.24,168.18,5.98139716]
[1747726228379,5.9108,168.26,168.18,5.98139716]
[1747726228580,5.9108,168.26,168.18,0.03749716]
[1747726228778,5.9422,168.24,168.19,5.9436]
[1747726229079,69.7035177,168.29,168.2,63.34]
[1747726229380,69.7035177,168.29,168.23,0.04203572]
[1747726230873,5.9418,168.25,168.23,0.04203572]
[1747726231181,69.7035177,168.29,168.23,0.04203572]
[1747726231582,5.9414,168.26,168.23,0.04203572]
[1747726232879,5.941,168.27,168.23,0.04203572]
[1747726235886,5.9412,168.26,168.24,63.34]
[1747726238690,5.9416,168.25,168.24,63.34]
[1747726238984,6.3635177,168.26,168.23,0.04203572]
[1747726239185,5.9252,168.25,168.17,577.04]
[1747726239488,5.9434,168.2,168.17,577.04]
[1747726239983,5.9252,168.25,168.17,577.04]
[1747726240181,0.04192667,168.23,168.19,0.04563223]
[1747726241888,5.9433,168.2,168.19,0.04563223]
[1747726243889,5.943,168.22,168.19,0.04563223]
[1747726244091,0.04192667,168.23,168.19,0.04563223]
[1747726245093,5.9429,168.22,168.19,0.04563223]
[1747726245592,5.9431,168.21,168.19,0.04563223]
[1747726250889,5.9433,168.2,168.19,0.04563223]
[1747726252090,5.9431,168.21,168.19,0.04563223]
[1747726252282,0.04192667,168.23,168.19,0.04563223]
[1747726252489,5.9432,168.21,168.19,0.04563223]
[1747726252693,0.04192667,168.23,168.19,0.04563223]
[1747726253697,5.9433,168.2,168.19,0.04563223]
[1747726258590,5.9451,168.15,168.14,63.22]
[1747726258795,5.8239,168.19,168.11,63.22]
[1747726259585,5.9459,168.13,168.11,63.22]
[1747726260497,0.03826427,168.17,168.11,63.22]
[1747726260886,5.98286427,168.17,168.12,5.9461]
[1747726261700,5.9448,168.16,168.12,5.9461]
[1747726261900,0.03826427,168.17,168.11,63.22]
[1747726262402,5.9458,168.14,168.11,63.22]
[1747726262702,0.03826427,168.17,168.11,63.22]
[1747726262900,5.9462,168.12,168.11,63.22]
[1747726264501,5.98597713,168.13,168.11,63.22]
[1747726264892,0.04007713,168.13,168.11,63.22]
[1747726265512,5.98597713,168.13,168.11,63.22]
[1747726266108,5.9462,168.12,168.11,63.22]
[1747726266400,0.04007713,168.13,168.1,0.04566669]
[1747726266598,5.9465,168.11,168.1,0.04566669]
[1747726267002,0.04007713,168.13,168.05,63.24]
[1747726267198,8.3362177,168.12,168.05,63.24]
[1747726267397,10.3699177,168.12,168.05,63.24]
[1747726267696,4.0064,168.12,168.05,63.24]
[1747726268103,4.0064,168.12,168.07,0.04035159]
[1747726268502,5.9472,168.09,168.07,0.04035159]
[1747726269996,5.9475,168.08,168.07,0.04035159]
[1747726272605,5.98705794,168.09,168.07,0.04035159]
[1747726273808,5.9475,168.08,168.07,0.04035159]
[1747726275808,6.40337564,168.09,168.01,576.92]
[1747726276005,6.40337564,168.09,168.01,63.12]
[1747726276407,5.9492,168.04,168.01,63.12]
[1747726276605,6.3635177,168.09,168.01,63.12]
[1747726276805,0.04450539,168.07,168.03,0.04036014]
[1747726277408,5.9489,168.04,168.03,0.04036014]
[1747726279809,5.9486,168.05,168.03,0.04036014]
[1747726281411,5.9489,168.04,168.03,0.04036014]
[1747726285607,10.4659177,168.06,167.96,148.27987602]
[1747726285608,6.3635177,168.03,167.96,148.27987602]
[1747726285809,8.4384177,168.03,167.96,148.27987602]
[1747726286108,71.5784177,168.03,167.96,148.27987602]
[1747726286317,5.9508,167.99,167.96,148.27987602]
[1747726286517,5.99075503,167.99,167.96,0.04123696]
[1747726287119,0.03995503,167.99,167.96,0.04123696]
[1747726288316,0.03995503,167.99,167.96,5.99283696]
[1747726289022,0.03995503,167.99,167.97,5.9513]
[1747726290520,0.03995503,167.99,167.96,5.99283696]
[1747726291220,0.03995503,167.99,167.97,5.9513]
[1747726292020,0.03995503,167.99,167.96,5.99283696]
[1747726292818,0.03995503,167.99,167.96,0.04123696]
[1747726293522,5.9513,167.97,167.96,0.04123696]
[1747726294718,5.9511,167.98,167.96,0.04123696]
[1747726294910,0.03995503,167.99,167.96,0.04123696]
[1747726295917,5.9513,167.97,167.96,0.04123696]
[1747726296920,5.9511,167.98,167.96,0.04123696]
[1747726297518,5.99075503,167.99,167.96,0.04123696]
[1747726297722,0.03995503,167.99,167.96,0.04123696]
[1747726302524,63.21995503,167.99,167.96,0.04123696]
[1747726302727,5.9513,167.97,167.96,0.04123696]
[1747726310526,0.03995503,167.99,167.96,0.04123696]
[1747726311636,5.951,167.98,167.96,0.04123696]
[1747726312028,0.03995503,167.99,167.96,0.04123696]
[1747726313132,5.951,167.98,167.96,0.04123696]
[1747726313632,5.99065503,167.99,167.96,0.04123696]
[1747726316130,5.9511,167.98,167.96,0.04123696]
[1747726316337,0.03995503,167.99,167.96,0.04123696]
[1747726317137,5.951,167.98,167.96,0.04123696]
[1747726320542,5.9513,167.97,167.96,0.04123696]
[1747726321246,0.03995503,167.99,167.96,0.04123696]
[1747726321640,5.9527,167.94,167.9,63.04]
[1747726321948,71.4138177,167.98,167.89,2.0044]
[1747726322147,6.3635177,167.95,167.87,230.76227774]
[1747726322747,5.9535,167.91,167.89,0.04084465]
[1747726323144,0.03926102,167.93,167.89,0.04084465]
[1747726323448,5.9538,167.9,167.89,0.04084465]
[1747726324545,5.9556,167.86,167.81,1.9544]
[1747726324750,5.9556,167.86,167.81,64.9944]
[1747726325145,5.9556,167.86,167.81,70.9512]
[1747726325650,0.04494119,167.85,167.82,0.04557036]
[1747726327644,6.00084119,167.85,167.82,0.04557036]
[1747726327845,0.04494119,167.85,167.82,0.04557036]
[1747726331346,5.956,167.84,167.82,0.04557036]
[1747726331851,0.04494119,167.85,167.82,0.04557036]
[1747726332051,5.956,167.84,167.82,0.04557036]
[1747726332458,0.04494119,167.85,167.82,0.04557036]
[1747726332759,5.9563,167.83,167.82,0.04557036]
[1747726334859,0.04494119,167.85,167.82,0.04557036]
[1747726335259,5.9532,167.92,167.82,0.04557036]
[1747726335959,5.9535,167.91,167.87,5.9546]
[1747726336259,5.9946243,167.91,167.87,5.99648004]
[1747726336560,0.0411243,167.91,167.87,5.99648004]
[1747726337257,0.0411243,167.91,167.87,0.04188004]
[1747726337761,5.9949243,167.91,167.87,0.04188004]
[1747726338061,0.0411243,167.91,167.87,0.04188004]
[1747726338258,0.0411243,167.91,167.89,5.9539]
[1747726338659,0.0411243,167.91,167.87,0.04188004]
[1747726341066,5.9539,167.9,167.87,0.04188004]
[1747726341365,0.0411243,167.91,167.87,0.04188004]
[1747726341566,5.954,167.9,167.87,0.04188004]
[1747726343469,5.9542,167.89,167.87,0.04188004]
[1747726343667,0.0411243,167.91,167.87,0.04188004]
[1747726343969,5.9948243,167.91,167.87,5.99678004]
[1747726344170,0.0411243,167.91,167.87,0.04188004]
[1747726345572,5.9539,167.9,167.87,0.04188004]
[1747726345774,0.0411243,167.91,167.87,0.04188004]
[1747726347476,5.9544,167.89,167.87,0.04188004]
[1747726348370,5.9545,167.88,167.87,0.04188004]
[1747726350276,0.0411243,167.91,167.87,0.04188004]
[1747726350579,5.9545,167.88,167.87,0.04188004]
[1747726351369,5.9543,167.89,167.87,0.04188004]
[1747726351678,0.0411243,167.91,167.87,0.04188004]
[1747726352582,5.9541,167.9,167.87,0.04188004]
[1747726352974,0.0411243,167.91,167.87,0.04188004]
[1747726353276,5.9543,167.89,167.87,0.04188004]
[1747726356173,5.9545,167.88,167.87,0.04188004]
[1747726357381,5.9543,167.89,167.87,0.04188004]
[1747726359580,0.0411243,167.91,167.87,0.04188004]
[1747726359975,0.0411243,167.91,167.88,62.94]
[1747726360376,86.45065846,168.01,167.94,5.9522]
[1747726360783,5.9509,167.99,167.94,5.9522]
[1747726361280,0.04005386,167.98,167.95,0.04535052]
[1747726361479,0.04005386,167.98,167.96,5.9517]
[1747726362584,0.04005386,167.98,167.95,5.99735052]
[1747726363481,0.04005386,167.98,167.95,0.04535052]
[1747726364782,5.99115386,167.98,167.95,0.04535052]
[1747726366084,5.9514,167.97,167.95,0.04535052]
[1747726366783,5.9517,167.96,167.95,0.04535052]
[1747726366985,0.04005386,167.98,167.95,0.04535052]
[1747726367287,5.9517,167.97,167.95,0.04535052]
[1747726367586,0.04005386,167.98,167.95,0.04535052]
[1747726367885,5.9517,167.96,167.95,0.04535052]
[1747726370990,5.9515,167.97,167.95,0.04535052]
[1747726372898,0.04005386,167.98,167.96,62.78]
[1747726374201,0.04005386,167.98,167.96,68.7314]
[1747726375399,0.04005386,167.98,167.97,5.9513]
[1747726375597,8.4027177,168.07,167.96,62.78]
[1747726375902,135.826255,168.08,167.97,6.3635177]
[1747726376100,5.9479,168.07,168.02,5.9493]
[1747726376401,135.826255,168.08,168.02,62.78]
[1747726376607,0.03932676,168.07,168.03,0.04247669]
[1747726376807,6.40284446,168.07,168.03,0.04247669]
[1747726377099,5.9491,168.04,168.03,0.04247669]
[1747726377310,0.03932676,168.07,168.03,62.80247669]
[1747726377702,0.03932676,168.07,168.05,5.9485]
[1747726377999,0.03932676,168.07,168.03,62.80247669]
[1747726378406,0.03932676,168.07,168.06,5.9482]
[1747726380311,68.6867,168.16,168.09,5.9469]
[1747726380606,68.6867,168.16,168.08,62.76]
[1747726380805,5.9267,168.16,168.08,62.76]
[1747726381303,5.9452,168.15,168.08,62.76]
[1747726381507,0.04037903,168.14,168.1,0.04213464]
[1747726381907,5.98597903,168.14,168.1,0.04213464]
[1747726383107,0.04037903,168.14,168.1,0.04213464]
[1747726384207,0.04037903,168.14,168.13,5.9457]
[1747726385312,0.04037903,168.14,168.12,68.686]
[1747726385710,0.04037903,168.14,168.12,62.74]
[1747726385906,0.04037903,168.14,168.13,5.9457]
[1747726386514,6.3635177,168.24,168.16,5.9445]
[1747726386717,6.3635177,168.24,168.16,68.6645]
[1747726386915,5.9431,168.21,168.16,68.6645]
[1747726387116,6.3635177,168.24,168.16,68.6645]
[1747726387318,6.3635177,168.24,168.16,62.72]
[1747726387615,5.98419999,168.21,168.18,0.03849803]
[1747726389318,0.04109999,168.21,168.18,0.03849803]
[1747726390016,5.9436,168.19,168.18,0.03849803]
[1747726391315,6.40461769,168.21,168.12,5.9459]
[1747726391523,6.3635177,168.18,168.09,62.7]
[1747726391724,6.3635177,168.15,168.09,62.7]
[1747726391917,6.3635177,168.15,168.07,5.9477]
[1747726392321,6.3635177,168.15,168.06,62.7]
[1747726392623,5.9467,168.11,168.09,0.0435888]
[1747726393014,6.3635177,168.12,168.09,0.0435888]
[1747726393224,8.3075177,168.12,168.09,0.0435888]
[1747726393520,10.2191177,168.12,168.09,0.0435888]
[1747726394922,0.04276151,168.13,168.09,0.0435888]
[1747726396824,5.9467,168.1,168.09,0.0435888]
[1747726403123,7.9847,168.11,168.09,0.0435888]
[1747726403323,5.9465,168.11,168.09,0.0435888]
[1747726406228,5.9467,168.1,168.09,0.0435888]
[1747726408324,2.0892,168.12,168.01,62.64]
[1747726408524,2.0422,168.09,168.01,62.64]
[1747726409025,5.9477,168.08,168.01,62.64]
[1747726409231,0.03993395,168.06,168.03,5.98892411]
[1747726409428,0.03993395,168.06,168.03,0.03972411]
[1747726410133,0.03993395,168.06,168.03,5.98882411]
[1747726411132,5.98813395,168.06,168.03,0.03972411]
[1747726412032,0.03993395,168.06,168.03,5.98882411]
[1747726413031,0.03993395,168.06,168.05,5.9485]
[1747726414337,0.03993395,168.06,168.04,5.9488]
[1747726414536,0.03993395,168.06,168.03,0.03972411]
[1747726416341,5.9489,168.04,168.03,0.03972411]
[1747726416731,2.0119,168.05,167.98,62.64]
[1747726416930,5.9506,168.0,167.96,5.9516]
[1747726417136,6.1052,168.05,167.96,5.9516]
[1747726417436,6.1052,168.05,167.95,62.64]
[1747726417637,5.9508,167.99,167.95,68.5918]
[1747726417838,5.9508,167.99,167.98,0.03940094]
[1747726419144,62.68097747,168.02,167.98,0.03940094]
[1747726419640,5.9504,168.0,167.98,0.03940094]
[1747726420138,62.68097747,168.02,167.98,0.03940094]
[1747726420438,5.9506,167.99,167.98,0.03940094]
[1747726421837,5.9504,168.0,167.98,0.03940094]
[1747726422338,62.68097747,168.02,167.98,0.03940094]
[1747726422637,5.9506,167.99,167.98,0.03940094]
[1747726429144,6.3635177,168.01,167.98,0.03940094]
[1747726429446,62.68097747,168.02,167.98,0.03940094]
[1747726430048,5.9502,168.01,167.98,5.99010094]
[1747726430234,62.68097747,168.02,167.98,0.03940094]
[1747726430439,0.04097747,168.02,167.98,0.03940094]
[1747726430945,0.04097747,168.02,167.99,5.9506]
[1747726431342,0.04097747,168.02,167.98,0.03940094]
[1747726432943,5.95,168.01,167.98,0.03940094]
[1747726433441,0.04097747,168.02,167.98,0.03940094]
[1747726434347,5.95,168.01,167.98,0.03940094]
[1747726435048,5.99057747,168.02,167.98,5.99020094]
[1747726435745,0.04097747,168.02,167.98,0.03940094]
[1747726436150,5.9506,167.99,167.98,0.03940094]
[1747726437047,5.9504,168.0,167.98,0.03940094]
[1747726438952,5.95,168.01,167.98,0.03940094]
[1747726439251,0.04097747,168.02,167.98,5.99020094]
[1747726439954,5.9503,168.0,167.98,0.03940094]
[1747726440549,5.9506,167.99,167.98,0.03940094]
[1747726447158,5.9519,167.96,167.93,231.47951482]
[1747726447357,68.9835177,167.99,167.9,66.6665]
[1747726447864,6.3635177,167.96,167.86,576.78]
[1747726448266,0.04518579,167.93,167.89,0.04454202]
[1747726448863,5.99828579,167.93,167.89,0.04454202]
[1747726449165,0.04518579,167.93,167.89,0.04454202]
[1747726449765,5.9531,167.92,167.89,0.04454202]
[1747726453171,5.9535,167.91,167.89,0.04454202]
[1747726453775,5.9532,167.92,167.89,0.04454202]
[1747726457167,5.99798579,167.93,167.89,0.04454202]
[1747726458969,5.9532,167.92,167.89,0.04454202]
[1747726459665,5.9536,167.91,167.89,0.04454202]
[1747726459965,0.04518579,167.93,167.89,0.04454202]
[1747726460167,6.40870349,167.93,167.89,0.04454202]
[1747726461070,5.9538,167.9,167.89,0.04454202]
[1747726461266,62.58,167.91,167.84,5.9558]
[1747726461671,6.3635177,167.9,167.8,62.58]
[1747726462273,0.04294576,167.87,167.84,5.9557]
[1747726462973,0.04294576,167.87,167.85,5.9555]
[1747726463173,0.04294576,167.87,167.83,0.04083139]
[1747726463581,0.04294576,167.87,167.84,62.6]
[1747726463779,0.04294576,167.87,167.86,5.9553]
[1747726466373,62.6,167.94,167.91,5.9533]
[1747726466581,62.6,167.98,167.88,62.6]
[1747726467481,0.04485957,167.95,167.92,5.9529]
[1747726467675,0.04485957,167.95,167.91,0.04198445]
[1747726468478,5.99705957,167.95,167.91,0.04198445]
[1747726470477,0.04485957,167.95,167.91,0.04198445]
[1747726472377,0.04485957,167.95,167.92,62.6]
[1747726473383,0.04485957,167.95,167.94,5.9524]